bitfinex/quotes_ETHUSD_20241119
["timestamp","ask_amount","ask_price","bid_price","bid_amount"]
[1732058054334,0.1416887,3105.0,3104.4,0.64423]
[1732058054497,0.9340887,3105.0,3104.5,0.7908]
[1732058054837,3.22102,3104.6,3104.5,0.03794581]
[1732058055042,0.7924,3104.5,3103.9,0.7908]
[1732058055195,4.01321,3104.8,3103.9,1.43514]
[1732058055524,0.7924,3104.8,3104.2,0.64428]
[1732058055708,0.7924,3104.8,3104.3,0.64426]
[1732058056037,4.1547287,3105.0,3104.3,0.64426]
[1732058056239,0.9340887,3105.0,3104.5,0.64422]
[1732058056393,0.1416887,3105.0,3104.6,0.03794581]
[1732058056834,0.1416887,3105.0,3104.5,1.43502]
[1732058057691,0.1416887,3105.0,3104.6,0.03794581]
[1732058058048,0.1416887,3105.0,3104.6,0.6442]
[1732058058210,0.1416887,3105.0,3104.7,0.03794581]
[1732058058396,0.1416887,3105.0,3104.5,1.43502]
[1732058058600,0.1416887,3105.0,3104.6,0.0379458]
[1732058061909,3.3623087,3105.0,3104.6,0.0379458]
[1732058062106,3.22088,3104.8,3104.6,0.0379458]
[1732058062537,3.22088,3104.8,3104.2,1.43508]
[1732058063235,3.3623287,3105.0,3104.3,0.03775886]
[1732058063438,3.3623287,3105.0,3104.4,0.64423]
[1732058063603,3.22071,3104.9,3104.4,0.64423]
[1732058064145,3.22071,3104.9,3104.2,0.99874]
[1732058064440,3.22082,3104.8,3104.2,1.75721]
[1732058064748,3.22082,3104.8,3104.3,0.03775886]
[1732058065197,3.22103,3104.6,3104.3,0.03775886]
[1732058065404,4.00873,3104.6,3104.0,0.96647]
[1732058065625,0.7877,3104.6,3104.1,1.00421887]
[1732058065802,0.7877,3104.6,3104.1,1.18532076]
[1732058065999,4.00872,3104.6,3104.1,1.18532076]
[1732058066240,0.7877,3104.6,3104.1,1.18532076]
[1732058067118,4.00873,3104.6,3104.1,0.21886076]
[1732058067823,0.7877,3104.6,3104.1,0.03775887]
[1732058068036,3.22144,3104.2,3104.1,0.03775887]
[1732058068231,3.2216,3104.1,3103.6,0.8068]
[1732058068434,3.2216,3104.1,3103.7,0.03780961]
[1732058068607,6.44284,3104.3,3103.7,0.03780961]
[1732058068819,3.22141,3104.3,3103.6,1.77339]
[1732058069027,3.22141,3104.3,3103.7,1.00438961]
[1732058069359,3.22155,3104.1,3103.7,0.03780961]
[1732058069541,3.22141,3104.3,3103.7,1.00435961]
[1732058069861,3.2215,3104.2,3103.7,0.33332247]
[1732058071338,3.22117,3104.5,3103.7,1.29990247]
[1732058071520,3.2214,3104.3,3103.7,1.29990247]
[1732058071719,6.44283,3104.3,3103.7,1.29990247]
[1732058072213,3.2214,3104.3,3103.7,1.29990247]
[1732058072538,3.22153,3104.2,3103.7,0.03780961]
[1732058073125,3.22142,3104.3,3103.7,1.00438961]
[1732058073512,4.00878,3104.6,3103.9,0.96652]
[1732058073720,3.22125,3104.4,3103.9,0.96652]
[1732058073948,3.22125,3104.4,3104.0,0.00498804]
[1732058074158,3.22125,3104.4,3103.9,0.96652]
[1732058074361,3.22125,3104.4,3103.9,1.19087551]
[1732058074853,3.22125,3104.4,3104.0,0.03298315]
[1732058077467,6.44219,3104.6,3104.1,0.00501773]
[1732058077769,3.22115,3104.5,3103.9,1.19087551]
[1732058078062,3.22115,3104.5,3104.0,0.03293277]
[1732058078421,3.22084,3104.8,3104.1,0.96644]
[1732058078622,3.22098,3104.7,3104.2,0.03297414]
[1732058079866,3.22098,3104.7,3104.1,0.96644]
[1732058080127,3.22098,3104.7,3104.2,0.99939414]
[1732058080901,3.22077,3104.9,3104.2,0.99939414]
[1732058081078,3.22082,3104.8,3104.3,0.96639]
[1732058081457,3.22082,3104.8,3104.4,0.03311332]
[1732058081663,6.3623487,3105.0,3104.4,0.8065]
[1732058081978,6.3623487,3105.0,3104.5,0.96633]
[1732058082381,6.3623487,3105.0,3104.6,0.03312262]
[1732058082796,3.3623487,3105.0,3104.6,0.03312262]
[1732058083301,3.3623487,3105.0,3104.4,1.77286]
[1732058083508,3.22072,3104.9,3104.4,0.8065]
[1732058083999,3.22082,3104.8,3104.4,0.8065]
[1732058084204,3.22079,3104.9,3104.4,0.8065]
[1732058084416,0.1416887,3105.0,3104.5,0.96633]
[1732058084583,0.1416887,3105.0,3104.5,1.240251]
[1732058084771,0.1416887,3105.0,3104.6,0.03785233]
[1732058085899,0.1416887,3105.0,3104.7,0.8065]
[1732058086266,0.1416887,3105.0,3104.7,1.77277]
[1732058086780,0.1416887,3105.0,3104.7,0.8065]
[1732058086979,0.1416887,3105.0,3104.7,1.98122833]
[1732058087181,0.1416887,3105.0,3104.8,0.00474032]
[1732058089069,3.22071,3104.9,3104.8,0.00474032]
[1732058089276,3.22071,3104.9,3104.4,0.8065]
[1732058089471,3.22088,3104.8,3104.4,0.8065]
[1732058089708,3.22092,3104.7,3104.4,0.8065]
[1732058090018,3.22092,3104.7,3104.5,0.03175603]
[1732058090395,3.22071,3104.9,3104.5,0.03175603]
[1732058090605,3.22071,3104.9,3104.4,0.8065]
[1732058090606,3.22082,3104.8,3104.4,0.8065]
[1732058090778,3.22071,3104.9,3104.4,0.8065]
[1732058091125,3.22083,3104.8,3104.5,0.03655836]
[1732058092627,3.22083,3104.8,3104.4,0.8065]
[1732058092823,6.44175,3104.8,3104.5,0.03655836]
[1732058093119,3.22082,3104.8,3104.5,0.03655836]
[1732058093339,3.3623487,3105.0,3104.5,0.03655836]
[1732058093854,3.3623487,3105.0,3104.6,0.7612]
[1732058094651,3.22071,3104.9,3104.6,0.7612]
[1732058094800,0.1416887,3105.0,3104.6,0.7612]
[1732058095248,0.1416887,3105.0,3104.7,0.64417]
[1732058095461,0.1416887,3105.0,3104.8,0.03657303]
[1732058096056,0.1416887,3105.0,3104.6,0.7612]
[1732058096257,0.1416887,3105.0,3104.7,0.03657169]
[1732058096548,0.1416887,3105.0,3104.6,0.7612]
[1732058096846,3.3622987,3105.0,3104.7,0.03657169]
[1732058099148,3.21903,3106.6,3105.8,0.64394]
[1732058099318,3.21886,3106.7,3106.2,0.00444422]
[1732058099507,3.21886,3106.7,3106.0,0.64389]
[1732058099711,3.21886,3106.7,3106.3,0.03653564]
[1732058099952,3.21886,3106.7,3105.6,0.7612]
[1732058100149,3.21896,3106.6,3105.6,1.40518]
[1732058100357,3.21919,3106.4,3105.7,0.03198816]
[1732058100525,3.21949,3106.1,3105.7,0.03198816]
[1732058100848,3.21961,3106.0,3105.7,0.03198816]
[1732058101060,3.21961,3106.0,3105.4,0.7612]
[1732058102426,3.21972,3105.9,3105.4,0.7612]
[1732058102633,3.2198,3105.8,3105.4,0.7612]
[1732058102809,3.21988,3105.7,3105.1,0.7612]
[1732058103149,3.21999,3105.6,3105.2,0.03639952]
[1732058103716,3.21958,3106.0,3105.2,0.64407]
[1732058103951,3.21958,3106.0,3105.4,0.64403]
[1732058104543,3.21958,3106.0,3105.3,0.64405]
[1732058104745,3.21958,3106.0,3105.3,0.848983]
[1732058104940,3.2194,3106.2,3105.4,0.7612]
[1732058105148,3.2194,3106.2,3105.5,0.644]
[1732058105320,3.2194,3106.2,3105.6,0.64399]
[1732058105515,0.7914,3106.4,3105.4,0.7612]
[1732058105829,3.21984,3105.8,3105.4,0.7612]
[1732058106368,3.21989,3105.7,3105.4,0.7612]
[1732058106661,3.21981,3105.8,3105.5,0.03521715]
[1732058106961,3.8014,3106.4,3105.4,0.7612]
[1732058106962,3.21996,3105.7,3105.4,0.7612]
[1732058107140,3.22007,3105.6,3105.0,0.7612]
[1732058107315,3.22019,3105.5,3105.0,0.7612]
[1732058107516,3.22019,3105.5,3105.1,0.03521715]
[1732058107718,3.2204,3105.2,3105.1,0.03521715]
[1732058108225,3.2204,3105.2,3104.7,0.7612]
[1732058108531,3.2204,3105.2,3104.8,0.03391681]
[1732058108729,3.22028,3105.4,3104.8,0.03391681]
[1732058108943,3.22038,3105.3,3104.7,0.7612]
[1732058109256,3.22041,3105.2,3104.8,0.23887481]
[1732058110317,3.22068,3105.0,3104.8,0.03391681]
[1732058110515,3.22071,3104.9,3104.8,0.03391681]
[1732058110926,3.98964,3105.2,3104.7,0.7612]
[1732058111128,3.22073,3104.9,3104.7,0.7612]
[1732058112048,3.22081,3104.8,3104.7,0.7612]
[1732058112656,3.22072,3104.9,3104.7,0.7612]
[1732058115237,3.22081,3104.8,3104.0,0.7989]
[1732058115581,3.22124,3104.4,3104.1,0.03184105]
[1732058115735,3.22104,3104.6,3104.1,0.03184105]
[1732058115939,3.22114,3104.5,3104.0,0.7989]
[1732058116270,3.22114,3104.5,3104.1,0.03184105]
[1732058116856,3.22124,3104.4,3104.1,0.03184105]
[1732058117271,3.22144,3104.2,3104.0,0.7989]
[1732058118379,3.22154,3104.1,3104.0,0.7989]
[1732058118534,3.22154,3104.1,3103.5,0.7989]
[1732058118734,3.22137,3104.3,3103.7,0.64437]
[1732058118937,3.22163,3104.1,3103.6,0.03096267]
[1732058119161,3.22163,3104.1,3103.8,0.00514242]
[1732058119345,3.2307,3105.0,3103.6,0.02577887]
[1732058119346,3.22183,3103.9,3103.7,0.00516311]
[1732058119557,3.22181,3103.9,3103.6,0.02577887]
[1732058119766,3.22181,3103.9,3103.8,0.02582157]
[1732058120075,3.22181,3103.9,3103.5,0.7989]
[1732058120439,3.22181,3103.9,3103.6,0.0258053]
[1732058120640,3.22181,3103.9,3103.5,0.7989]
[1732058120856,3.22181,3103.9,3103.6,0.0258053]
[1732058121060,3.22181,3103.9,3103.5,0.7989]
[1732058121270,3.22181,3103.9,3103.6,0.0258053]
[1732058121472,3.22181,3103.9,3103.5,0.7989]
[1732058121707,3.22181,3103.9,3103.6,0.0258053]
[1732058122043,3.22181,3103.9,3103.5,0.7989]
[1732058122363,3.22181,3103.9,3103.6,0.0258053]
[1732058122691,3.22181,3103.9,3103.5,0.7989]
[1732058122891,3.22188,3103.8,3103.6,0.0309891]
[1732058123046,3.22188,3103.8,3103.5,0.7989]
[1732058123248,3.22159,3104.1,3103.6,0.0309891]
[1732058123447,3.22159,3104.1,3103.5,0.7989]
[1732058123682,6.44278,3104.3,3103.6,0.6444]
[1732058123884,3.22136,3104.3,3103.5,0.7989]
[1732058124059,3.22155,3104.1,3103.6,0.0309891]
[1732058124384,3.22155,3104.1,3103.5,1.44333]
[1732058124791,3.22155,3104.1,3103.6,0.0309891]
[1732058124949,3.22155,3104.1,3103.7,0.21187291]
[1732058125382,3.22155,3104.1,3103.8,0.02584668]
[1732058125585,3.22099,3104.7,3103.8,0.02584668]
[1732058125586,3.22072,3104.9,3104.1,0.64429]
[1732058125830,3.22072,3104.9,3104.2,0.8045]
[1732058126035,3.22072,3104.9,3104.2,1.47490217]
[1732058126202,3.22055,3105.1,3104.4,0.8045]
[1732058126541,3.22055,3105.1,3104.5,0.00496649]
[1732058126909,3.22031,3105.3,3104.5,0.00496649]
[1732058127228,3.22041,3105.2,3104.5,0.64917649]
[1732058127389,3.22041,3105.2,3104.5,0.64421]
[1732058127735,3.22041,3105.2,3104.6,0.64915982]
[1732058127941,3.2203,3105.3,3104.7,0.64418]
[1732058128091,3.22014,3105.5,3104.9,0.8045]
[1732058128434,3.22014,3105.5,3104.9,1.44864]
[1732058129113,3.22014,3105.5,3104.9,0.8045]
[1732058129328,3.22025,3105.4,3105.0,0.0047828]
[1732058129503,3.22025,3105.4,3104.9,0.8045]
[1732058130044,3.22014,3105.5,3104.9,0.8045]
[1732058130209,3.22014,3105.5,3105.0,0.0047828]
[1732058130413,3.22014,3105.5,3104.9,1.013782]
[1732058130828,3.22022,3105.4,3104.9,1.013782]
[1732058131133,3.22014,3105.5,3104.9,1.013782]
[1732058131346,3.22014,3105.5,3104.9,1.657922]
[1732058131499,3.22014,3105.5,3105.0,0.1657922]
[1732058132539,6.44033,3105.5,3105.0,0.1657922]
[1732058132753,3.22022,3105.4,3105.0,0.1657922]
[1732058133317,3.22014,3105.5,3105.0,0.1657922]
[1732058133519,3.22014,3105.5,3105.0,0.8099122]
[1732058133819,3.97662,3105.7,3105.0,0.8099122]
[1732058134021,3.22005,3105.6,3105.1,0.03082001]
[1732058134816,3.97662,3105.7,3105.1,0.03082001]
[1732058135032,3.22009,3105.5,3105.1,0.03082001]
[1732058135254,3.22009,3105.5,3105.0,0.1657922]
[1732058135460,6.44025,3105.5,3104.9,0.8045]
[1732058135667,3.22049,3105.2,3104.9,0.8045]
[1732058135843,3.22049,3105.2,3104.6,0.8045]
[1732058135844,3.22064,3105.0,3104.6,0.8045]
[1732058136053,3.97719,3105.2,3104.6,0.8045]
[1732058136382,3.22051,3105.1,3104.6,0.8045]
[1732058136581,9.15340023,3106.0,3104.6,1.4487]
[1732058136582,3.22035,3105.3,3104.6,1.4487]
[1732058136782,3.97694,3105.4,3104.8,0.64415]
[1732058136984,3.22002,3105.6,3104.9,0.64412]
[1732058137197,3.2201,3105.5,3105.0,0.8045]
[1732058137763,3.9766,3105.7,3105.0,1.4486]
[1732058137764,7.19657,3105.7,3105.0,1.4486]
[1732058137952,3.9766,3105.7,3105.0,1.6143885]
[1732058138155,3.2199,3105.7,3105.0,1.6143885]
[1732058138384,3.21999,3105.6,3105.0,1.6143885]
[1732058138689,3.2199,3105.7,3105.1,0.6441]
[1732058138887,3.2199,3105.7,3105.1,0.80553885]
[1732058139398,6.43988,3105.7,3105.1,0.80553885]
[1732058139603,3.22,3105.6,3105.1,0.16143885]
[1732058139753,3.2199,3105.7,3105.1,0.16143885]
[1732058140654,3.22,3105.6,3105.1,0.16143885]
[1732058140995,3.22,3105.6,3105.2,0.02610343]
[1732058141379,3.22,3105.6,3105.1,0.16143885]
[1732058141699,3.22,3105.6,3105.2,0.03078567]
[1732058141856,3.22,3105.6,3105.1,0.16143885]
[1732058142206,3.22,3105.6,3105.2,0.03078567]
[1732058142497,3.22,3105.6,3105.1,0.16143885]
[1732058142793,3.22,3105.6,3105.2,0.03070907]
[1732058143094,3.22,3105.6,3105.1,0.80552885]
[1732058143457,3.22,3105.6,3105.2,0.03070907]
[1732058144393,3.97641,3105.9,3105.2,0.03070907]
[1732058144600,3.21986,3105.8,3105.2,0.03070907]
[1732058144908,3.21989,3105.7,3105.1,0.80551885]
[1732058145497,3.21989,3105.7,3105.2,0.03070907]
[1732058145799,3.21989,3105.7,3105.1,0.80551885]
[1732058145956,3.21989,3105.7,3105.2,0.64407]
[1732058146404,3.21989,3105.7,3105.3,0.03070907]
[1732058146707,3.21978,3105.8,3105.3,0.64405]
[1732058147001,3.97641,3105.9,3105.3,0.64405]
[1732058147292,3.21971,3105.9,3105.4,0.8061]
[1732058147815,3.21943,3106.2,3105.6,0.64398]
[1732058148019,3.21916,3106.4,3106.0,0.8061]
[1732058148173,3.2189,3106.7,3106.0,1.45001]
[1732058148174,3.21893,3106.7,3106.0,1.45001]
[1732058148510,3.21868,3106.9,3106.1,0.67455153]
[1732058148667,0.7828,3107.0,3106.1,0.03066153]
[1732058148668,3.21908,3106.5,3106.1,0.03066153]
[1732058148868,3.21905,3106.6,3106.0,0.8061]
[1732058149175,3.21891,3106.7,3106.1,0.64389]
[1732058149399,4.00136,3107.0,3106.2,0.64385]
[1732058149612,4.00136,3107.0,3106.3,0.64383]
[1732058149780,3.21865,3106.9,3106.2,0.67441255]
[1732058150179,3.21881,3106.8,3106.2,0.67441255]
[1732058150388,3.21881,3106.8,3106.2,0.64385]
[1732058150764,3.21881,3106.8,3106.3,0.8061]
[1732058151532,4.00136,3107.0,3106.3,1.44993]
[1732058151810,0.7828,3107.0,3106.3,0.8061]
[1732058152012,3.21857,3107.0,3106.4,0.67435143]
[1732058152169,3.005,3107.1,3106.6,0.64377]
[1732058152170,0.005,3107.1,3106.6,0.64377]
[1732058152369,0.005,3107.1,3106.5,0.64379]
[1732058152567,0.005,3107.1,3106.7,0.8061]
[1732058153078,0.005,3107.1,3106.8,0.00445713]
[1732058154189,3.22345,3107.1,3106.8,0.00445713]
[1732058154498,3.21864,3106.9,3106.7,0.8061]
[1732058154689,3.21874,3106.8,3106.7,0.8061]
[1732058155349,3.21874,3106.8,3106.7,0.83196968]
[1732058155550,3.76874,3106.8,3106.7,0.02586968]
[1732058155756,0.55,3106.9,3105.8,0.64395]
[1732058155956,3.21906,3106.5,3105.9,0.7597]
[1732058156116,0.55,3106.4,3106.0,0.204759]
[1732058156461,0.55,3106.5,3106.1,0.02575764]
[1732058156756,3.76907,3106.5,3106.2,0.00458104]
[1732058156961,0.55,3106.7,3106.3,0.7597]
[1732058157453,0.55,3106.7,3106.4,0.00453973]
[1732058157816,0.55,3106.7,3106.3,0.7597]
[1732058160542,0.005,3107.1,3106.3,0.7597]
[1732058160543,0.55,3106.5,3106.3,0.7597]
[1732058160855,0.55,3106.5,3106.4,0.02591049]
[1732058161162,0.55,3106.6,3106.3,0.7597]
[1732058161336,3.76896,3106.6,3106.3,0.7597]
[1732058161529,3.21916,3106.4,3106.3,0.7597]
[1732058161737,3.76916,3106.4,3106.3,0.7597]
[1732058161924,0.55,3106.4,3106.3,0.7597]
[1732058162124,0.55,3106.7,3106.3,0.78560588]
[1732058162518,0.55,3106.7,3106.3,1.42944588]
[1732058162729,0.005,3107.1,3106.4,1.40673]
[1732058163057,0.005,3107.1,3106.7,0.7629]
[1732058163216,0.005,3107.1,3106.7,1.40665]
[1732058163422,0.005,3107.1,3106.8,0.02597983]
[1732058163664,0.005,3107.1,3106.8,0.66970983]
[1732058163972,0.005,3107.1,3106.9,1.40662]
[1732058164122,0.005,3107.1,3106.9,1.64017296]
[1732058165165,0.005,3107.1,3107.0,1.4066]
[1732058165520,0.005,3107.1,3107.0,1.43262073]
[1732058166152,0.005,3107.1,3107.0,0.78892073]
[1732058166359,0.005,3107.1,3107.0,1.43262073]
[1732058166559,0.005,3107.1,3107.0,1.6610181]
[1732058167097,0.005,3107.1,3107.0,1.0173181]
[1732058167308,0.005,3107.1,3107.0,1.6610181]
[1732058167592,0.005,3107.1,3107.0,0.78892073]
[1732058168691,0.005,3107.1,3107.0,1.43262073]
[1732058170295,0.005,3107.1,3107.0,1.49697872]
[1732058173167,0.005,3107.1,3107.0,1.43262073]
[1732058173386,0.005,3107.1,3107.0,1.64868754]
[1732058174662,0.005,3107.1,3107.0,2.09481446]
[1732058175472,0.005,3107.1,3107.0,1.64868754]
[1732058177024,0.005,3107.1,3107.0,1.00498754]
[1732058177719,0.005,3107.1,3107.0,1.64868754]
[1732058178940,0.005,3107.1,3107.0,1.00498754]
[1732058179155,0.005,3107.1,3107.0,0.02602073]
[1732058179736,0.005,3107.1,3107.0,0.02561645]
[1732058180443,0.005,3107.1,3107.0,0.02461525]
[1732058180726,0.005,3107.1,3106.7,1.40666]
[1732058180927,0.005,3107.1,3106.8,0.02457395]
[1732058181494,3.16854,3107.0,3106.8,0.02457395]
[1732058181709,3.21892,3106.7,3106.1,0.7629]
[1732058182110,0.55,3106.9,3106.1,0.7629]
[1732058182353,3.76856,3107.0,3106.4,0.64381]
[1732058182650,0.005,3107.1,3106.6,0.64377]
[1732058182862,0.005,3107.1,3106.8,0.64374]
[1732058183012,0.005,3107.1,3106.9,0.64372]
[1732058184267,0.005,3107.1,3106.5,0.7629]
[1732058184565,0.005,3107.1,3106.8,0.64374]
[1732058184915,0.005,3107.1,3106.9,0.06437151]
[1732058185115,0.005,3107.1,3106.8,0.64374]
[1732058185328,0.005,3107.1,3106.9,0.02473252]
[1732058186155,3.22343,3107.1,3107.0,0.00430825]
[1732058186473,4.02183,3107.1,3107.0,0.00430825]
[1732058186616,4.02183,3107.1,3106.0,0.64391]
[1732058186617,3.21913,3106.5,3106.0,0.7679]
[1732058186816,3.21923,3106.4,3106.0,0.7679]
[1732058187039,4.01753,3106.5,3106.0,0.7679]
[1732058187242,3.21926,3106.3,3105.8,0.7679]
[1732058187453,3.21966,3106.0,3105.4,1.41192]
[1732058188129,3.21925,3106.4,3105.6,0.64399]
[1732058188322,3.21947,3106.1,3105.6,0.64399]
[1732058188522,3.21926,3106.3,3105.6,0.64399]
[1732058188750,3.2194,3106.2,3105.6,0.64399]
[1732058189635,3.2194,3106.2,3105.7,0.00457669]
[1732058190030,3.76919,3106.4,3105.7,0.00457669]
[1732058190262,3.2194,3106.2,3105.7,0.00457669]
[1732058190493,3.21947,3106.2,3105.7,0.00457669]
[1732058190646,3.21947,3106.2,3105.5,0.644]
[1732058190851,3.21947,3106.2,3105.8,0.00467463]
[1732058191186,3.21947,3106.2,3105.9,0.00465397]
[1732058191673,3.21947,3106.2,3105.6,0.849582]
[1732058191889,3.21947,3106.2,3106.0,0.02927503]
[1732058192036,3.21947,3106.2,3105.6,0.849582]
[1732058192399,3.21947,3106.2,3105.6,0.205592]
[1732058192400,3.21979,3105.8,3105.6,0.205592]
[1732058192544,3.22008,3105.6,3105.1,0.7679]
[1732058192886,3.2203,3105.4,3104.9,0.7679]
[1732058193540,0.55,3105.8,3104.9,0.7679]
[1732058193734,0.7984,3105.9,3104.6,1.34415051]
[1732058193735,3.22051,3105.1,3104.6,1.34415051]
[1732058193934,3.22051,3105.1,3104.6,1.54942796]
[1732058194364,3.22029,3105.4,3104.8,0.7679]
[1732058194898,3.22015,3105.5,3104.9,0.849752]
[1732058195271,4.01841,3105.6,3105.0,0.6441]
[1732058195437,4.01841,3105.6,3104.9,0.91415593]
[1732058195633,3.96841,3105.6,3105.0,0.1617652]
[1732058195874,3.22009,3105.5,3105.0,0.1617652]
[1732058196576,3.2202,3105.4,3105.0,0.1617652]
[1732058196800,3.2202,3105.4,3104.8,0.7679]
[1732058197561,3.22009,3105.5,3104.8,0.7679]
[1732058197762,3.22067,3105.0,3104.9,0.02941093]
[1732058197946,4.01842,3105.6,3104.9,0.02941093]
[1732058197947,3.22042,3105.2,3104.9,0.02941093]
[1732058198945,3.22049,3105.2,3104.9,0.02941093]
[1732058200656,3.22054,3105.1,3104.9,0.02941093]
[1732058200989,3.22068,3105.0,3104.6,0.57625051]
[1732058201275,4.03568,3105.0,3104.6,0.77508856]
[1732058201683,3.22092,3104.7,3104.6,0.57625051]
[1732058202977,4.58592,3104.7,3104.6,0.57625051]
[1732058203644,7.58592,3104.7,3104.6,0.57625051]
[1732058203848,7.58592,3104.7,3104.6,0.49574559]
[1732058204059,7.58592,3104.7,3103.3,0.64447]
[1732058204060,3.22189,3103.8,3103.4,0.06442881]
[1732058204260,3.22189,3103.8,3103.3,0.8052]
[1732058204469,3.22178,3103.9,3103.3,1.44967]
[1732058204680,0.815,3104.0,3103.5,0.64443]
[1732058204985,0.815,3104.0,3103.6,0.64441]
[1732058205191,3.22182,3103.9,3103.5,0.209406]
[1732058205348,0.815,3104.0,3103.5,0.64442]
[1732058205569,0.55,3104.1,3103.5,0.64442]
[1732058205847,0.815,3104.2,3103.6,0.06443743]
[1732058206064,3.22156,3104.1,3103.8,0.8052]
[1732058206264,0.55,3104.2,3103.8,0.8052]
[1732058206469,4.03616,3104.5,3103.8,0.8052]
[1732058206762,3.7713,3104.4,3103.8,1.44955]
[1732058206955,0.55,3104.5,3104.0,0.64432]
[1732058207194,0.55,3104.5,3104.0,0.85668915]
[1732058207375,3.77113,3104.5,3104.0,0.21236915]
[1732058208742,3.22134,3104.3,3103.9,0.02982146]
[1732058208973,0.55,3104.5,3103.9,0.02982146]
[1732058209347,0.55,3104.6,3104.0,0.64432]
[1732058209558,0.55,3104.6,3104.0,0.85669015]
[1732058209758,0.55,3104.6,3104.0,0.21237015]
[1732058209992,3.22047,3105.2,3103.9,0.02982146]
[1732058209993,3.2213,3104.4,3103.9,0.02982146]
[1732058210174,0.815,3104.3,3103.9,0.02982146]
[1732058210777,3.77154,3104.2,3103.9,0.02982146]
[1732058210974,3.77154,3104.2,3103.6,0.6444]
[1732058211149,0.55,3104.2,3103.8,0.64436]
[1732058211347,0.55,3104.2,3103.9,0.02982146]
[1732058215356,4.03634,3104.3,3103.9,0.02982146]
[1732058215550,0.55,3104.2,3103.9,0.02982146]
[1732058215855,0.815,3104.3,3103.7,0.64437]
[1732058216062,0.55,3104.4,3104.0,0.64432]
[1732058216264,4.0362,3104.5,3103.8,0.67419146]
[1732058216461,3.22141,3104.3,3103.8,0.02982146]
[1732058216895,4.03665,3104.0,3103.5,0.8052]
[1732058217096,4.03665,3104.0,3103.9,0.0299443]
[1732058217269,3.22196,3103.7,3103.2,0.64448]
[1732058217595,0.55,3103.8,3103.2,0.64448]
[1732058217596,0.55,3103.8,3103.3,0.02991523]
[1732058217758,3.77195,3103.8,3103.3,0.00521224]
[1732058218272,3.22203,3103.7,3103.3,0.00521224]
[1732058219371,3.22211,3103.6,3103.3,0.00521224]
[1732058220661,3.7719,3103.8,3103.3,0.00521224]
[1732058220866,3.22202,3103.7,3103.3,0.00521224]
[1732058221070,3.22202,3103.7,3103.4,0.02994958]
[1732058221488,3.22202,3103.7,3103.3,0.00521224]
[1732058222270,0.55,3103.8,3103.3,0.00521224]
[1732058222588,4.03727,3103.4,3103.3,0.00521224]
[1732058223163,4.58727,3103.4,3103.3,0.00521224]
[1732058224259,7.58727,3103.4,3103.3,0.00521224]
[1732058225495,7.59727,3103.4,3103.3,0.00521224]
[1732058225802,7.59727,3103.4,3103.3,2.24e-06]
[1732058226001,4.03851,3102.3,3101.6,1.45002]
[1732058226311,3.77354,3102.2,3101.7,0.02892713]
[1732058226602,0.55,3102.2,3101.6,1.13684257]
[1732058226806,0.55,3102.5,3101.9,0.64475]
[1732058227166,0.55,3102.5,3102.2,0.64469]
[1732058227366,3.7729,3102.8,3102.2,1.44989]
[1732058227782,0.55,3102.8,3102.2,1.44989]
[1732058228411,0.55,3102.8,3102.3,0.64468]
[1732058228568,0.815,3102.9,3102.3,0.209457]
[1732058228771,3.22227,3103.4,3102.3,0.06446714]
[1732058228981,3.2225,3103.2,3102.6,0.64461]
[1732058229165,4.0399,3103.2,3102.6,0.64461]
[1732058229365,0.8174,3103.2,3102.7,0.67375241]
[1732058229791,0.8174,3103.2,3102.7,0.02916241]
[1732058229993,0.8174,3102.8,3102.7,0.02916241]
[1732058230271,0.8174,3102.8,3102.2,0.6447]
[1732058230584,0.8174,3102.8,3102.1,0.6447]
[1732058230585,0.8174,3102.8,3102.3,0.67380787]
[1732058230999,3.77303,3102.7,3102.3,0.02914787]
[1732058231201,3.77303,3102.7,3101.9,0.64476]
[1732058231403,0.8174,3102.3,3102.0,0.02914786]
[1732058232228,3.77353,3102.2,3102.0,0.02914786]
[1732058232450,0.55,3102.2,3102.0,0.02914786]
[1732058232749,1.3674,3102.1,3102.0,0.02914786]
[1732058233196,0.55,3102.0,3101.3,0.64488]
[1732058233398,0.8174,3102.1,3101.7,0.64478]
[1732058233655,0.8174,3102.8,3101.8,1.28956]
[1732058233934,4.04036,3102.8,3101.9,0.855076]
[1732058234154,3.22318,3102.6,3101.9,0.64475]
[1732058234313,4.04034,3102.8,3102.0,0.0292206]
[1732058234642,0.8174,3102.8,3102.4,0.64465]
[1732058234848,0.8174,3103.0,3102.8,0.64456]
[1732058235003,0.8174,3103.3,3102.9,0.64455]
[1732058235358,0.8174,3103.3,3103.0,0.02918753]
[1732058236204,0.8174,3103.9,3103.3,0.64446]
[1732058236403,3.22186,3103.8,3103.2,0.64449]
[1732058236607,4.03922,3103.9,3103.2,0.64449]
[1732058236841,3.22203,3103.7,3103.0,0.64452]
[1732058237140,0.8174,3103.6,3103.1,0.02916241]
[1732058237303,0.8174,3104.0,3103.5,0.64443]
[1732058237656,0.8174,3104.0,3103.1,0.02916241]
[1732058237657,0.8174,3104.7,3104.3,0.64425]
[1732058237811,0.8174,3105.0,3104.6,0.64418]
[1732058238007,0.8174,3105.0,3104.7,0.67318507]
[1732058238265,3.29956007,3105.6,3104.7,0.67318507]
[1732058238266,0.8174,3105.5,3104.9,0.64414]
[1732058238650,0.8174,3105.5,3104.8,0.64416]
[1732058238937,0.8174,3105.5,3104.9,0.64412]
[1732058239297,4.03751,3105.5,3104.9,0.64412]
[1732058239505,3.22036,3105.3,3104.5,0.64421]
[1732058239742,4.03932,3105.2,3104.5,0.64421]
[1732058240111,0.55,3105.1,3104.6,0.02877387]
[1732058240510,0.55,3104.8,3104.6,0.02877387]
[1732058240842,0.55,3104.8,3104.3,0.64426]